bitfinex/quotes_BTCUSD_20250314
["timestamp","ask_amount","ask_price","bid_price","bid_amount"]
[1741937785970,0.34357753,82284.0,82283.0,0.01091685]
[1741937786241,0.243063,82283.0,82282.0,0.002]
[1741937786398,0.255216,82283.0,82282.0,0.002]
[1741937786605,0.255216,82283.0,82282.0,0.01091728]
[1741937786824,0.255216,82283.0,82281.0,0.0471]
[1741937787044,0.255216,82283.0,82282.0,0.01181862]
[1741937787421,0.243066,82282.0,82281.0,0.0471]
[1741937787638,0.243063,82283.0,82282.0,0.001]
[1741937788144,0.243063,82283.0,82282.0,0.002]
[1741937788372,0.243063,82283.0,82282.0,0.001]
[1741937788731,0.25843128,82284.0,82282.0,0.001]
[1741937789129,0.01537128,82284.0,82281.0,0.0471]
[1741937789382,0.255219,82282.0,82281.0,0.0481]
[1741937789753,0.255219,82282.0,82281.0,0.0501]
[1741937789933,0.255219,82282.0,82281.0,0.0491]
[1741937790467,0.255219,82282.0,82281.0,0.0471]
[1741937790628,0.255219,82282.0,82281.0,0.0481]
[1741937791322,0.255219,82282.0,82281.0,0.0471]
[1741937791493,0.255219,82282.0,82281.0,0.0491]
[1741937792453,0.27427514,82282.0,82281.0,0.0501]
[1741937793197,0.27427514,82282.0,82281.0,0.003]
[1741937793407,0.01905614,82282.0,82281.0,0.003]
[1741937793609,0.01905614,82282.0,82281.0,0.246069]
[1741937794055,0.01905614,82282.0,82281.0,0.003]
[1741937794416,0.01905614,82282.0,82281.0,0.015153]
[1741937794738,0.01905614,82282.0,82281.0,0.258222]
[1741937795424,0.01922534,82282.0,82281.0,0.003]
[1741937795586,0.26229134,82282.0,82281.0,0.003]
[1741937795789,0.0001692,82282.0,82281.0,0.246069]
[1741937797125,0.0001692,82282.0,82281.0,0.003]
[1741937797327,0.0001692,82282.0,82281.0,0.338322]
[1741937797653,0.0001692,82282.0,82281.0,0.35014113]
[1741937798212,0.0123222,82282.0,82281.0,0.01481913]
[1741937798409,0.2553882,82282.0,82281.0,0.01381913]
[1741937798825,0.2553882,82282.0,82281.0,0.003]
[1741937799027,0.27444538,82282.0,82281.0,0.003]
[1741937799313,0.67727949,82282.0,82281.0,0.002]
[1741937799485,0.255244,82274.0,82273.0,0.0003384]
[1741937801048,0.255244,82274.0,82273.0,0.0033384]
[1741937802200,0.255244,82274.0,82273.0,0.0073384]
[1741937815207,0.0001692,82282.0,82281.0,0.243069]
[1741937815411,0.543069,82281.0,82280.0,0.0785]
[1741937815527,0.555222,82281.0,82280.0,0.0785]
[1741937816090,0.555222,82281.0,82275.0,0.0797]
[1741937816091,0.243084,82276.0,82275.0,0.0797]
[1741937816489,0.255238,82276.0,82275.0,0.0797]
[1741937817101,0.255244,82274.0,82273.0,0.0003384]
[1741937818409,0.255244,82274.0,82273.0,0.0043384]
[1741937819083,0.255244,82274.0,82273.0,0.0083384]
[1741937819644,0.2554132,82274.0,82273.0,0.0083384]
[1741937820255,0.0001692,82274.0,82273.0,0.0083384]
[1741937820582,0.0001692,82274.0,82273.0,0.3466854]
[1741937821275,0.0001692,82274.0,82273.0,0.3345314]
[1741937821526,0.0001692,82274.0,82273.0,0.3466854]
[1741937824863,0.0001692,82274.0,82273.0,0.3345314]
[1741937825222,0.0001692,82274.0,82273.0,0.0914384]
[1741937825386,0.2432592,82274.0,82273.0,0.0914384]
[1741937826945,0.0001692,82274.0,82273.0,0.0914384]
[1741937827146,0.2432592,82274.0,82273.0,0.0914384]
[1741937827850,0.2432592,82274.0,82273.0,0.10327574]
[1741937828027,0.0001692,82274.0,82273.0,0.10327574]
[1741937828629,0.2432592,82274.0,82273.0,0.10327574]
[1741937828853,0.01922667,82274.0,82273.0,0.34636874]
[1741937829237,0.01922667,82274.0,82273.0,0.35852274]
[1741937829834,0.01922667,82274.0,82273.0,0.40372274]
[1741937835827,0.0001692,82274.0,82273.0,0.40372274]
[1741937836442,0.0001692,82274.0,82273.0,0.39156874]
[1741937838257,0.0001692,82274.0,82273.0,0.40372274]
[1741937840204,0.01922617,82274.0,82273.0,0.40372274]
[1741937842392,0.01922617,82274.0,82273.0,0.39156874]
[1741937842592,0.01922617,82274.0,82273.0,0.34636874]
[1741937844099,0.0001692,82274.0,82273.0,0.34636874]
[1741937844892,0.0001692,82274.0,82273.0,0.10327574]
[1741937845622,0.0001692,82274.0,82273.0,0.34636874]
[1741937846558,0.0001692,82274.0,82273.0,0.10327574]
[1741937849058,0.27447035,82274.0,82273.0,0.10327574]
[1741937849660,0.27447035,82274.0,82273.0,0.02017574]
[1741937850231,0.27447035,82274.0,82273.0,0.0083384]
[1741937850478,0.27447035,82274.0,82273.0,0.02137348]
[1741937850675,0.27447035,82274.0,82273.0,0.0083384]
[1741937850905,0.27447035,82274.0,82273.0,0.02137348]
[1741937851047,0.27447035,82274.0,82273.0,0.0083384]
[1741937851253,0.27447035,82274.0,82273.0,0.02137348]
[1741937851498,0.27447035,82274.0,82273.0,0.0083384]
[1741937851699,0.27447035,82274.0,82273.0,0.02137348]
[1741937852042,0.01922635,82274.0,82273.0,0.35872048]
[1741937852375,0.01922635,82274.0,82273.0,0.40712048]
[1741937855926,0.0001692,82274.0,82273.0,0.40712048]
[1741937856855,0.0001692,82274.0,82273.0,0.15187348]
[1741937857283,0.0001692,82274.0,82273.0,0.39496648]
[1741937858089,0.0001692,82274.0,82273.0,0.40712048]
[1741937859085,0.01922617,82274.0,82273.0,0.40712048]
[1741937865922,0.0001692,82274.0,82273.0,0.40712048]
[1741937868917,0.01922564,82274.0,82273.0,0.40712048]
[1741937871444,0.01922564,82274.0,82273.0,0.35872048]
[1741937872311,0.01922564,82274.0,82273.0,0.34656648]
[1741937872477,0.01922564,82274.0,82273.0,0.10347348]
[1741937872675,0.01922564,82274.0,82273.0,0.26446648]
[1741937873077,0.01922564,82274.0,82273.0,0.27662048]
[1741937874465,0.25294289,82283.0,82280.0,0.243072]
[1741937874634,0.255222,82281.0,82276.0,0.012154]
[1741937874835,0.243076,82279.0,82275.0,0.25524]
[1741937875078,0.243076,82279.0,82277.0,0.243079]
[1741937875667,0.243076,82279.0,82276.0,0.243083]
[1741937876075,0.243067,82282.0,82278.0,0.243078]
[1741937876324,0.24307,82281.0,82278.0,0.243078]
[1741937876619,0.243078,82278.0,82276.0,0.243083]
[1741937876812,0.243078,82278.0,82275.0,0.243084]
[1741937877014,0.243082,82277.0,82275.0,0.243084]
[1741937877209,0.243082,82277.0,82275.0,0.245084]
[1741937877624,0.255231,82278.0,82273.0,0.2555844]
[1741937877848,0.243081,82277.0,82276.0,0.003]
[1741937878352,0.243081,82277.0,82274.0,0.243089]
[1741937878638,0.243081,82277.0,82275.0,0.003]
[1741937878838,0.243084,82276.0,82274.0,0.243089]
[1741937878995,0.243078,82278.0,82275.0,0.243086]
[1741937879203,0.01905695,82277.0,82276.0,0.243083]
[1741937879629,0.01905695,82277.0,82276.0,0.331537]
[1741937880240,0.01905695,82277.0,82276.0,0.334537]
[1741937880414,0.01905695,82277.0,82276.0,0.337537]
[1741937881513,0.01905695,82277.0,82276.0,0.334537]
[1741937882147,0.01905695,82277.0,82276.0,0.337537]
[1741937882572,0.01905695,82277.0,82276.0,0.334537]
[1741937882806,0.01905695,82277.0,82276.0,0.331537]
[1741937883014,0.01905695,82277.0,82276.0,0.335537]
[1741937884021,0.243065,82283.0,82281.0,0.243068]
[1741937884429,0.2578528,82284.0,82281.0,0.243068]
[1741937884990,0.0147908,82284.0,82283.0,0.255216]
[1741937885188,0.0147908,82284.0,82279.0,0.243072]
[1741937885393,0.0147908,82284.0,82281.0,0.002]
[1741937885592,0.0147908,82284.0,82282.0,0.243063]
[1741937885793,0.0147908,82284.0,82281.0,0.255216]
[1741937885990,0.0147908,82284.0,82282.0,0.243064]
[1741937886200,0.2578518,82284.0,82282.0,0.243064]
[1741937886604,0.0147908,82284.0,82282.0,0.243064]
[1741937886835,0.0147908,82284.0,82283.0,0.243063]
[1741937887039,0.0147908,82284.0,82282.0,0.245064]
[1741937887233,0.0147908,82284.0,82283.0,0.243063]
[1741937887551,0.03384679,82284.0,82283.0,0.243063]
[1741937887902,0.03384679,82284.0,82283.0,0.25390933]
[1741937888561,0.03384679,82284.0,82283.0,0.26606233]
[1741937888882,0.03384679,82284.0,82283.0,0.26806233]
[1741937889392,0.03384679,82284.0,82283.0,0.27006233]
[1741937889746,0.03401589,82284.0,82283.0,0.27006233]
[1741937889950,0.01963478,82284.0,82283.0,0.27006233]
[1741937891086,0.01963478,82284.0,82283.0,0.25790933]
[1741937891963,0.01963478,82284.0,82283.0,0.27006233]
[1741937893895,0.01963478,82284.0,82283.0,0.01484633]
[1741937894099,0.26269478,82284.0,82283.0,0.01484633]
[1741937894684,0.27484778,82284.0,82283.0,0.01484633]
[1741937894911,0.27484778,82284.0,82283.0,0.004]
[1741937895649,0.27484778,82284.0,82283.0,0.01484633]
[1741937896013,0.25579179,82284.0,82283.0,0.01484633]
[1741937896166,0.24363879,82284.0,82283.0,0.01484633]
[1741937897200,0.25579179,82284.0,82283.0,0.01484633]
[1741937897405,0.25579179,82284.0,82283.0,0.004]
[1741937898158,0.25579179,82284.0,82283.0,0.01329783]
[1741937898349,0.25579179,82284.0,82283.0,0.004]
[1741937898581,0.25579179,82284.0,82283.0,0.01329783]
[1741937898710,0.00057879,82284.0,82283.0,0.259216]
[1741937898914,0.01963477,82284.0,82283.0,0.26851383]
[1741937899114,0.01963477,82284.0,82283.0,0.01329783]
[1741937899452,0.26269477,82284.0,82283.0,0.01329783]
[1741937899810,0.01963477,82284.0,82283.0,0.01329783]
[1741937900442,0.01963477,82284.0,82283.0,0.25636083]
[1741937900636,0.01963477,82284.0,82283.0,0.01329783]
[1741937900840,0.26269477,82284.0,82283.0,0.01329783]
[1741937901897,0.01963477,82284.0,82283.0,0.01329783]
[1741937902072,0.01963477,82284.0,82283.0,0.25669903]
[1741937902486,0.01963477,82284.0,82283.0,0.01363603]
[1741937902964,0.01963477,82284.0,82283.0,0.25669903]
[1741937903240,0.01963477,82284.0,82283.0,0.34795203]
[1741937904544,0.01963477,82284.0,82283.0,0.34595203]
[1741937905244,0.01963477,82284.0,82283.0,0.34395203]
[1741937905385,0.01963477,82284.0,82283.0,0.34595203]
[1741937906039,0.00057879,82284.0,82283.0,0.34795203]
[1741937906623,0.00057879,82284.0,82283.0,0.34595203]
[1741937907091,0.00057879,82284.0,82283.0,0.34795203]
[1741937909169,0.01963428,82284.0,82283.0,0.34795203]
[1741937911086,0.01963428,82284.0,82283.0,0.002]
[1741937911303,0.555303,82255.0,82254.0,0.0001692]
[1741937911518,0.3,82255.0,82254.0,0.0001692]
[1741937911720,0.436,82255.0,82254.0,0.0001692]
[1741937912149,0.46721878,82255.0,82254.0,0.0001692]
[1741937912725,0.4672984,82255.0,82254.0,0.0001692]
[1741937912953,0.44823662,82255.0,82254.0,0.0001692]
[1741937913297,0.44923662,82255.0,82254.0,0.0001692]
[1741937913477,0.14923662,82255.0,82254.0,0.0001692]
[1741937913677,0.15045199,82255.0,82254.0,0.0001692]
[1741937914044,0.14945199,82255.0,82254.0,0.0001692]
[1741937914229,0.15045199,82255.0,82254.0,0.0001692]
[1741937914436,0.14906999,82255.0,82254.0,0.0001692]
[1741937914618,0.15006999,82255.0,82254.0,0.0001692]
[1741937915952,0.012158,82246.0,82239.0,0.0573383]
[1741937916150,0.24319,82240.0,82239.0,0.0573383]
[1741937917280,0.24319,82240.0,82239.0,0.0583383]
[1741937917664,0.24319,82240.0,82239.0,0.0603383]
[1741937918818,0.255349,82240.0,82239.0,0.006]
[1741937919947,0.255349,82240.0,82239.0,0.003]
[1741937920340,0.255349,82240.0,82239.0,0.005]
[1741937920547,0.255349,82240.0,82239.0,0.002]
[1741937921185,0.255349,82240.0,82239.0,0.004]
[1741937921731,0.27441551,82240.0,82239.0,0.004]
[1741937925033,0.255349,82240.0,82239.0,0.004]
[1741937926355,0.255349,82240.0,82239.0,0.0041692]
[1741937928289,0.27441549,82240.0,82239.0,0.0041692]
[1741937930846,0.01906649,82240.0,82239.0,0.0041692]
[1741937931047,0.26347186,82240.0,82239.0,0.0041692]
[1741937931218,0.27441549,82240.0,82239.0,0.0041692]
[1741937934646,0.26225649,82240.0,82239.0,0.0041692]
[1741937934807,0.27441549,82240.0,82239.0,0.0041692]
[1741937936794,0.243229,82227.0,82223.0,0.2759092]
[1741937937181,0.243234,82226.0,82224.0,0.01889682]
[1741937937395,0.243229,82227.0,82224.0,0.01889682]
[1741937937605,0.01906703,82227.0,82224.0,0.26213382]
[1741937937936,0.01906703,82227.0,82224.0,0.26225337]
[1741937938137,0.01906703,82227.0,82225.0,0.243233]
[1741937938554,0.01906703,82227.0,82226.0,0.01889479]
[1741937938761,0.26229603,82227.0,82226.0,0.01889479]
[1741937939172,0.26229603,82227.0,82225.0,0.243234]
[1741937939368,0.01906703,82227.0,82226.0,0.26212679]
[1741937939685,0.26229603,82227.0,82226.0,0.01889479]
[1741937939887,0.01906703,82227.0,82226.0,0.13476475]
[1741937940092,0.26229603,82227.0,82226.0,0.15865954]
[1741937940292,0.01906703,82227.0,82226.0,0.15865954]
[1741937941089,0.26229603,82227.0,82226.0,0.15865954]
[1741937941662,0.01906703,82227.0,82226.0,0.01]
[1741937941810,0.26229603,82227.0,82226.0,0.01]
[1741937942362,0.25539,82227.0,82226.0,0.01]
[1741937942898,0.27445762,82227.0,82226.0,0.005]
[1741937943095,0.26229662,82227.0,82226.0,0.005]
[1741937943298,0.27445762,82227.0,82226.0,0.009]
[1741937944195,0.26229662,82227.0,82226.0,0.004]
[1741937944393,0.27445762,82227.0,82226.0,0.004]
[1741937944595,0.03122862,82227.0,82226.0,0.02380237]
[1741937944801,0.27567299,82227.0,82226.0,0.008]
[1741937945065,0.27445762,82227.0,82226.0,0.008]
[1741937946019,0.27445762,82227.0,82226.0,0.02380237]
[1741937946152,0.27445762,82227.0,82226.0,0.008]
[1741937946351,0.27445762,82227.0,82226.0,0.02380237]
[1741937946625,0.27445762,82227.0,82226.0,0.008]
[1741937946801,0.27445762,82227.0,82226.0,0.02380237]
[1741937947013,0.27445762,82227.0,82226.0,0.008]
[1741937947164,0.27445762,82227.0,82226.0,0.02380237]
[1741937948520,0.01906762,82227.0,82226.0,0.02380237]
[1741937948689,0.01906762,82227.0,82226.0,0.40831141]
[1741937948894,0.01906762,82227.0,82226.0,0.40709537]
[1741937949784,0.0003384,82240.0,82239.0,0.255352]
[1741937949986,0.0003384,82240.0,82239.0,0.5720991]
[1741937950186,0.0003384,82240.0,82239.0,0.5878785]
[1741937950941,0.0003384,82240.0,82239.0,0.612531]
[1741937951325,0.0003384,82240.0,82239.0,0.64668313]
[1741937952699,0.0003384,82240.0,82239.0,0.63530016]
[1741937952902,0.0003384,82240.0,82239.0,0.64730016]
[1741937953868,0.0003384,82240.0,82239.0,0.624531]
[1741937955080,0.0003384,82240.0,82239.0,0.5722439]
[1741937955279,0.0003384,82240.0,82239.0,0.5475914]
[1741937956654,4e-07,82240.0,82239.0,0.5525914]
[1741937956884,4e-07,82240.0,82239.0,0.8525914]
[1741937958373,4e-07,82240.0,82239.0,0.8405914]
[1741937958570,4e-07,82240.0,82239.0,0.8465914]
[1741937958769,4e-07,82240.0,82239.0,0.8525914]
[1741937960622,4e-07,82240.0,82239.0,1.257006]
[1741937963644,4e-07,82240.0,82239.0,1.2571752]
[1741937967390,4e-07,82255.0,82254.0,0.255306]
[1741937967589,4e-07,82255.0,82254.0,0.9299406]
[1741937967845,4e-07,82255.0,82254.0,1.3798035]
[1741937968043,4e-07,82255.0,82254.0,2.1251035]
[1741937968245,0.0001691,82284.0,82283.0,0.332216]
[1741937968509,0.0001691,82284.0,82283.0,0.468176]
[1741937968732,0.00057879,82284.0,82283.0,0.768176]
[1741937968900,0.00057879,82284.0,82283.0,0.78403619]
[1741937969451,0.00057879,82284.0,82283.0,0.27107619]
[1741937969651,0.00057879,82284.0,82283.0,0.40707619]
[1741937969864,0.00057879,82284.0,82283.0,0.41307619]
[1741937971107,0.00057879,82284.0,82283.0,0.41907619]
[1741937971716,0.00057879,82284.0,82283.0,0.40707619]
[1741937971918,0.00057879,82284.0,82283.0,0.41907619]
[1741937976220,0.255165,82300.0,82293.0,0.243034]
[1741937976428,0.243024,82297.0,82294.0,0.24303]
[1741937976728,0.255169,82298.0,82294.0,0.01576718]
[1741937976924,0.243024,82297.0,82294.0,0.25879718]
[1741937977150,0.243022,82297.0,82294.0,0.01576718]
[1741937977408,0.243022,82297.0,82293.0,0.243032]
[1741937977582,0.243022,82297.0,82295.0,0.01576617]
[1741937977780,0.243022,82297.0,82294.0,0.25879718]
[1741937978031,0.255169,82298.0,82296.0,0.01576515]
[1741937978216,0.255169,82298.0,82295.0,0.01576617]
[1741937978421,0.243025,82296.0,82294.0,0.002]
[1741937978630,0.255169,82298.0,82294.0,0.002]
[1741937978835,0.255179,82295.0,82294.0,0.002]
[1741937978956,0.243028,82295.0,82294.0,0.002]
[1741937979162,0.01215,82299.0,82294.0,0.002]
[1741937979367,0.00121537,82298.0,82294.0,0.002]
[1741937979566,0.00121537,82298.0,82295.0,0.002]
[1741937979766,0.00121537,82298.0,82295.0,0.245025]
[1741937980203,0.00121537,82298.0,82296.0,0.243024]
[1741937981540,0.00121537,82299.0,82298.0,0.243019]
[1741937981751,0.01917568,82300.0,82299.0,0.01215]
[1741937981967,0.01917568,82300.0,82299.0,0.255166]
[1741937984136,0.01917568,82300.0,82299.0,0.256166]
[1741937984727,0.01917568,82300.0,82299.0,0.257166]
[1741937987395,0.01934488,82300.0,82299.0,0.257166]
[1741937988748,0.01934488,82300.0,82299.0,0.245016]
[1741937990223,0.01934488,82300.0,82299.0,0.257166]
[1741937992642,0.01934488,82300.0,82299.0,0.27391634]
[1741937997374,0.01934488,82300.0,82299.0,0.27291634]
[1741937997827,0.01934488,82300.0,82299.0,0.27391634]
[1741937998176,0.01934488,82300.0,82299.0,0.27291634]
[1741937998542,0.01934488,82300.0,82299.0,0.27591634]
[1741937999330,0.01934488,82300.0,82299.0,0.27625474]
[1741938000070,0.01934488,82300.0,82299.0,0.27525474]
[1741938000520,0.01934488,82300.0,82299.0,0.27825474]
[1741938003998,0.00029206,82300.0,82299.0,0.35505474]
[1741938004199,6e-08,82300.0,82299.0,0.55057888]
[1741938004417,0.0001691,82310.0,82309.0,0.255135]
[1741938004541,0.0001691,82310.0,82309.0,0.331935]
[1741938004740,0.0001691,82310.0,82309.0,0.34860193]
[1741938005589,0.0001691,82310.0,82309.0,0.35160193]
[1741938005969,0.0001691,82310.0,82309.0,0.34860193]
[1741938007458,0.0001691,82310.0,82309.0,0.35460193]
[1741938008222,0.0001691,82310.0,82309.0,0.36060193]
[1741938015360,0.0001691,82310.0,82309.0,0.49664193]
[1741938023716,0.0001691,82310.0,82309.0,0.54054193]
[1741938023917,0.0001691,82310.0,82309.0,0.54654193]
[1741938024317,0.0001691,82310.0,82309.0,0.54054193]
[1741938024602,0.0001691,82310.0,82309.0,0.53454193]
[1741938024752,0.0001691,82310.0,82309.0,0.54654193]
[1741938024952,0.0001691,82310.0,82309.0,0.54054193]
[1741938026166,0.0001691,82310.0,82309.0,0.54654193]
[1741938028913,0.0001691,82310.0,82309.0,0.54654193]
[1741938032455,0.0001691,82310.0,82309.0,0.53960729]
[1741938035032,0.0001691,82310.0,82309.0,0.55097778]
[1741938037513,0.0001691,82310.0,82309.0,0.55037778]
[1741938038410,0.0001691,82310.0,82309.0,0.54437778]
[1741938038819,0.0001691,82310.0,82309.0,0.55037778]
[1741938039419,0.0001691,82310.0,82309.0,0.54437778]
[1741938039751,0.0003384,82321.0,82320.0,0.255101]
[1741938039944,0.0003384,82321.0,82320.0,0.381201]
[1741938040145,0.0003384,82321.0,82320.0,0.39092364]
[1741938041088,0.0003384,82321.0,82320.0,0.40229413]
[1741938041987,0.0003384,82321.0,82320.0,0.70229413]
[1741938042371,0.0003384,82321.0,82320.0,0.70829413]
[1741938042513,0.0003384,82321.0,82320.0,0.71429413]
[1741938042870,0.0003384,82321.0,82320.0,0.77255413]
[1741938043082,0.0003384,82321.0,82320.0,0.42351413]
[1741938043334,0.0003384,82321.0,82320.0,0.41214364]
[1741938047066,0.0003384,82321.0,82320.0,0.41214364]
[1741938061395,0.0003384,82321.0,82320.0,0.53624364]
[1741938061684,0.0003384,82321.0,82320.0,0.40092364]
[1741938061828,0.0003384,82321.0,82320.0,0.53632364]
[1741938063163,0.0003384,82321.0,82320.0,0.53032364]
[1741938063671,0.0003384,82321.0,82320.0,0.53632364]
[1741938064452,0.0003384,82321.0,82320.0,0.53032364]
[1741938064653,0.0003384,82321.0,82320.0,0.53632364]
[1741938065051,0.33824663,82336.0,82335.0,0.255055]
[1741938065270,0.33836947,82336.0,82335.0,0.255055]
[1741938065470,0.33836947,82336.0,82335.0,0.25260558]
[1741938066053,0.33836947,82336.0,82335.0,0.00969558]
[1741938066279,0.33836947,82336.0,82335.0,0.01269558]
[1741938066477,0.33836947,82336.0,82335.0,0.01469558]
[1741938067685,0.59342147,82336.0,82335.0,0.01469558]
[1741938068326,0.33836947,82336.0,82335.0,0.01469558]
[1741938068531,0.08046179,82336.0,82335.0,0.25760558]
[1741938068726,0.32336879,82336.0,82335.0,0.01469558]
[1741938069499,0.08046179,82336.0,82335.0,0.01469558]
[1741938070180,0.50384176,82336.0,82335.0,0.01469558]
[1741938070385,0.41611379,82336.0,82335.0,0.01469558]
[1741938070574,0.41611379,82336.0,82335.0,0.005]
[1741938070941,0.46151379,82336.0,82335.0,0.005]
[1741938071140,0.242934,82327.0,82325.0,0.242938]
[1741938071369,0.255092,82324.0,82315.0,0.012148]
[1741938071539,0.255092,82324.0,82316.0,0.00953116]
[1741938071540,0.012147,82322.0,82316.0,0.00953116]
[1741938071761,0.242951,82321.0,82317.0,0.255108]
[1741938071964,0.242954,82320.0,82315.0,0.012148]
[1741938072393,0.01903579,82325.0,82321.0,0.012147]
[1741938072601,0.01903579,82325.0,82324.0,0.242942]
[1741938072915,0.01903579,82325.0,82323.0,0.255092]
[1741938073252,0.01903579,82325.0,82324.0,0.242942]
[1741938073672,0.01903579,82325.0,82323.0,0.242945]
[1741938073970,0.01903579,82325.0,82322.0,0.242948]
[1741938074591,0.26197479,82325.0,82322.0,0.242948]
[1741938074818,0.242958,82319.0,82316.0,0.242963]
[1741938075077,0.242956,82320.0,82317.0,0.24296]
[1741938075286,0.08063089,82336.0,82331.0,0.24292]
[1741938075487,0.00121537,82335.0,82331.0,0.012146]
[1741938075702,0.00121537,82335.0,82332.0,0.012145]
[1741938075910,0.00121537,82335.0,82333.0,0.242913]
[1741938076267,0.00121537,82335.0,82332.0,0.012145]
[1741938076472,0.00121537,82335.0,82333.0,0.242915]
[1741938076473,0.24412537,82335.0,82333.0,0.242915]
[1741938076670,0.08063089,82336.0,82335.0,0.012145]
[1741938076873,0.08184626,82336.0,82335.0,0.255055]
[1741938077530,0.08184626,82336.0,82333.0,0.242915]
[1741938078403,0.32475326,82336.0,82335.0,0.002]
[1741938078568,0.09966416,82336.0,82335.0,0.002]
[1741938078767,0.10087953,82336.0,82335.0,0.002]
[1741938079169,0.10087953,82336.0,82334.0,0.242912]
[1741938079845,0.10087953,82336.0,82333.0,0.004]
[1741938080078,0.11302453,82336.0,82333.0,0.004]
[1741938080217,0.012145,82335.0,82333.0,0.002]
[1741938080464,0.24412837,82334.0,82333.0,0.002]
[1741938080659,0.242913,82334.0,82333.0,0.002]
[1741938081500,0.242913,82334.0,82329.0,0.255067]
[1741938081701,0.00121537,82333.0,82331.0,0.242921]
[1741938081914,0.24413237,82333.0,82329.0,0.012146]
[1741938082229,0.242917,82333.0,82329.0,0.255068]
[1741938082413,0.00121537,82332.0,82329.0,0.255068]
[1741938082620,0.37987837,82332.0,82331.0,0.00916142]
[1741938082856,0.242943,82324.0,82322.0,0.242946]
[1741938083189,0.242948,82323.0,82320.0,0.242954]
[1741938083428,0.242948,82324.0,82321.0,0.24295]
[1741938083629,0.26198354,82324.0,82321.0,0.24295]
[1741938083848,0.26198354,82324.0,82322.0,0.242948]
[1741938084019,0.26198354,82324.0,82321.0,0.24295]
[1741938084861,0.242945,82323.0,82321.0,0.24495]
[1741938085076,0.33221037,82322.0,82321.0,0.002]
[1741938085331,0.330995,82322.0,82321.0,0.002]
[1741938086199,0.088047,82322.0,82321.0,0.002]
[1741938086349,0.25631037,82322.0,82321.0,0.002]
[1741938086530,0.255095,82322.0,82321.0,0.002]
[1741938086933,0.24296,82318.0,82315.0,0.0003382]
[1741938087140,0.24418037,82317.0,82315.0,0.0003382]
[1741938087332,0.242965,82317.0,82315.0,0.0003382]
[1741938087582,0.242965,82317.0,82315.0,0.05264614]
[1741938087725,0.24296,82318.0,82315.0,0.29561414]
[1741938088118,0.24417837,82317.0,82315.0,0.29561414]
[1741938088327,0.242963,82317.0,82315.0,0.05264614]
[1741938088532,0.242966,82316.0,82315.0,0.0033382]
[1741938088730,0.242966,82316.0,82315.0,0.0003382]
[1741938088928,0.242966,82316.0,82315.0,0.0033382]
[1741938089172,0.255114,82316.0,82315.0,0.0033382]
[1741938089672,0.267967,82316.0,82315.0,0.0033382]
[1741938090044,0.267967,82316.0,82315.0,0.0003382]
[1741938090244,0.267967,82316.0,82315.0,0.0033382]
[1741938090869,0.267967,82316.0,82315.0,0.0063382]
[1741938091507,0.255114,82316.0,82315.0,0.0063382]
[1741938092246,0.26797819,82316.0,82315.0,0.0063382]
[1741938092999,0.255114,82316.0,82315.0,0.0063382]
[1741938093928,0.2619968,82318.0,82315.0,0.0063382]
[1741938094246,0.00121537,82317.0,82315.0,0.0063382]
[1741938094402,0.242966,82316.0,82315.0,0.0063382]
[1741938094600,0.0190368,82318.0,82315.0,0.0063382]
[1741938094804,0.00121537,82317.0,82315.0,0.0033382]
[1741938095323,0.00121537,82317.0,82315.0,0.0053382]
[1741938095509,0.242966,82316.0,82315.0,0.0053382]
[1741938097029,0.242966,82316.0,82315.0,0.0033382]
[1741938097324,0.242966,82316.0,82315.0,0.0003382]
[1741938097433,0.2741448,82318.0,82315.0,0.01253789]
[1741938097628,0.00121537,82317.0,82315.0,0.25850589]
[1741938097867,0.24417837,82317.0,82315.0,0.25550589]
[1741938098070,0.0190368,82318.0,82315.0,0.00953789]
[1741938098253,0.0190368,82318.0,82315.0,0.01553789]
[1741938098465,0.00121537,82317.0,82315.0,0.01553789]
[1741938098676,0.00121537,82317.0,82315.0,0.01253789]
[1741938099084,0.00121537,82317.0,82316.0,0.242966]
[1741938099687,0.00121537,82317.0,82316.0,0.26431331]
[1741938100643,0.0190368,82318.0,82317.0,0.242963]
[1741938100864,0.0190368,82318.0,82317.0,0.25216192]
[1741938101252,0.02025217,82318.0,82317.0,0.25216192]
[1741938101460,0.0190368,82318.0,82317.0,0.25216192]
[1741938101855,0.0190368,82318.0,82317.0,0.26730992]
[1741938103004,0.0190368,82318.0,82317.0,0.26930992]
[1741938104742,0.08063089,82336.0,82335.0,0.255055]
[1741938105413,0.08063089,82336.0,82335.0,0.00919193]
[1741938105583,0.08063089,82336.0,82334.0,0.242912]
[1741938105747,0.08063089,82336.0,82335.0,0.0091832]
[1741938105941,0.08063089,82336.0,82335.0,0.2520932]
[1741938106564,0.08063089,82336.0,82335.0,0.0101832]
[1741938106825,0.08184626,82336.0,82335.0,0.0101832]
[1741938107165,0.08184626,82336.0,82335.0,0.0111832]
[1741938107866,0.08184626,82336.0,82335.0,0.2530932]
[1741938108060,0.08063089,82336.0,82335.0,0.2662382]
[1741938108383,0.08184626,82336.0,82335.0,0.2662382]
[1741938108603,0.10088039,82336.0,82335.0,0.2662382]
[1741938109634,0.09966502,82336.0,82335.0,0.2662382]
[1741938110314,0.09966502,82336.0,82335.0,0.0101832]
[1741938110679,0.09966502,82336.0,82335.0,0.0111832]
[1741938110889,0.09966502,82336.0,82335.0,0.0101832]
[1741938111304,0.11302539,82336.0,82335.0,0.0101832]
[1741938111625,0.11302539,82336.0,82335.0,0.0111832]
[1741938112069,0.10088039,82336.0,82335.0,0.0111832]
[1741938113550,0.09966502,82336.0,82335.0,0.07667352]
[1741938113830,0.09966502,82336.0,82335.0,0.0233282]
[1741938114232,0.09966502,82336.0,82335.0,0.0111832]
[1741938117015,0.10088039,82336.0,82335.0,0.0111832]
[1741938117828,0.10088039,82336.0,82335.0,0.0115214]
[1741938119279,0.10088039,82336.0,82335.0,0.2665764]
[1741938119448,0.09966502,82336.0,82335.0,0.2665764]
[1741938119633,0.09966502,82336.0,82335.0,0.0115214]
[1741938121614,0.09966502,82336.0,82335.0,0.2544314]
[1741938121916,0.09966502,82336.0,82335.0,0.2665764]
[1741938122044,9.9e-07,82337.0,82336.0,0.336752]
[1741938122251,7.555e-05,82337.0,82336.0,0.39131774]
[1741938122657,7.555e-05,82337.0,82336.0,0.40428446]
[1741938123283,7.555e-05,82337.0,82336.0,0.39131774]
[1741938123885,7.555e-05,82337.0,82336.0,0.52795774]
[1741938124312,7.555e-05,82337.0,82336.0,0.39131774]
[1741938124520,7.555e-05,82337.0,82336.0,0.52795774]